fUSD/lending_fUSD_20260304
["ID","MTS","AMOUNT","RATE_DAILY","PERIOD"]
[407678526,1772665861103,-200.0,0.00039297,2]
[407678527,1772665861117,-200.0,0.00039297,2]
[407678528,1772665861127,-200.0,0.00039297,2]
[407678529,1772665861137,-200.0,0.00039297,2]
[407678530,1772665861147,-200.0,0.00039297,2]
[407678531,1772665861156,-200.0,0.00039297,2]
[407678532,1772665861166,-200.0,0.00039297,2]
[407678533,1772665861176,-200.0,0.00039297,2]
[407678534,1772665861188,-200.0,0.00039297,2]
[407678535,1772665861198,-200.0,0.00039297,2]
[407678536,1772665861210,-200.0,0.00039297,2]
[407678537,1772665861220,-200.0,0.00039297,2]
[407678538,1772665861230,-200.0,0.00039297,2]
[407678539,1772665861240,-200.0,0.00039297,2]
[407678540,1772665861250,-200.0,0.00039297,2]
[407678541,1772665861261,-200.0,0.00039297,2]
[407678542,1772665861271,-200.0,0.00039297,2]
[407678543,1772665861282,-200.0,0.00039297,2]
[407678544,1772665861291,-200.0,0.00039297,2]
[407678545,1772665861301,-200.0,0.00039297,2]
[407678546,1772665861311,-200.0,0.00039297,2]
[407678547,1772665861321,-200.0,0.00039297,2]
[407678548,1772665861331,-200.0,0.00039297,2]
[407678549,1772665861341,-200.0,0.00039297,2]
[407678550,1772665861350,-200.0,0.00039297,2]
[407678551,1772665861360,-200.0,0.00039297,2]
[407678552,1772665861370,-200.0,0.00039297,2]
[407678553,1772665861379,-200.0,0.00039297,2]
[407678554,1772665861389,-200.0,0.00039297,2]
[407678555,1772665861399,-200.0,0.00039297,2]
[407678556,1772665861408,-200.0,0.00039297,2]
[407678557,1772665861418,-200.0,0.00039297,2]
[407678558,1772665861427,-200.0,0.00039297,2]
[407678559,1772665861436,-200.0,0.00039297,2]
[407678560,1772665861445,-200.0,0.00039297,2]
[407678561,1772665861455,-200.0,0.00039297,2]
[407678562,1772665861464,-244.0,0.00039297,2]
[407678563,1772665861473,-152.0,0.00039444,4]
[407678564,1772665861482,-1000.0,0.000395,2]
[407678565,1772665861491,-7493.31,0.000398,14]
[407678566,1772665861500,-823.67114308,0.00039829,2]
[407678567,1772665861510,-3288.64628152,0.00039857,2]
[407678568,1772665861519,-6462.70728396,0.00039899,2]
[407678569,1772665861529,-13960.54539542,0.000399,2]
[407678570,1772665861539,-765.46,0.00039999,120]
[407678571,1772665861550,-250.0,0.0004,7]
[407678572,1772665861561,-250.0,0.0004,7]
[407678573,1772665861570,-20253.55390775,0.0004,7]
[407678574,1772665861580,-2194.8,0.0004,14]
[407678575,1772665861589,-392.35695982,0.0004,2]
[407678576,1772665861599,-1567.82011903,0.0004,2]
[407678577,1772665861609,-4127.40535857,0.0004,2]
[407678578,1772665861619,-219.7881439,0.0004,2]
[407678579,1772665861628,-960.91627463,0.0004,2]
[407678580,1772665861638,-602.31985214,0.0004,2]
[407678581,1772665861648,-316.17357705,0.0004,2]
[407678582,1772665861657,-162.35099037,0.0004,2]
[407678583,1772665861666,-10735.44150929,0.0004,2]
[407678584,1772665861676,-151.0,0.0004,120]
[407678585,1772665861685,-151.0,0.0004,120]
[407678586,1772665861695,-150.86,0.0004,2]
[407678587,1772665861704,-150.86,0.0004,2]
[407678588,1772665861714,-150.86,0.0004,2]
[407678589,1772665861723,-150.86,0.0004,2]
[407678590,1772665861732,-150.86,0.0004,2]
[407678591,1772665861743,-150.86,0.0004,2]
[407678592,1772665861752,-150.86,0.0004,2]
[407678593,1772665861762,-150.86,0.0004,2]
[407678594,1772665861771,-150.86,0.0004,2]
[407678595,1772665861780,-150.86,0.0004,2]
[407678596,1772665861789,-150.86,0.0004,2]
[407678597,1772665861799,-150.86,0.0004,2]
[407678598,1772665861810,-150.86,0.0004,2]
[407678599,1772665861821,-150.86,0.0004,2]
[407678600,1772665861830,-150.86,0.0004,2]
[407678601,1772665861840,-150.86,0.0004,2]
[407678602,1772665861850,-150.86,0.0004,2]
[407678603,1772665861860,-150.86,0.0004,2]
[407678604,1772665861871,-150.86,0.0004,2]
[407678605,1772665861881,-150.86,0.0004,2]
[407678606,1772665861890,-150.86,0.0004,2]
[407678607,1772665861900,-150.86,0.0004,2]
[407678608,1772665861909,-150.86,0.0004,2]
[407678609,1772665861920,-150.86,0.0004,2]
[407678610,1772665861930,-150.86,0.0004,2]
[407678611,1772665861940,-150.86,0.0004,2]
[407678612,1772665861950,-150.86,0.0004,2]
[407678613,1772665861960,-150.86,0.0004,2]
[407678614,1772665861971,-150.86,0.0004,2]
[407678615,1772665861980,-150.86,0.0004,2]
[407678616,1772665861990,-150.86,0.0004,2]
[407678617,1772665861999,-150.86,0.0004,2]
[407678618,1772665862009,-150.86,0.0004,2]
[407678619,1772665862018,-150.86,0.0004,2]
[407678620,1772665862028,-150.86,0.0004,2]
[407678621,1772665862038,-150.86,0.0004,2]
[407678622,1772665862047,-150.86,0.0004,2]
[407678623,1772665862057,-150.86,0.0004,2]
[407678624,1772665862068,-150.86,0.0004,2]
[407678625,1772665862078,-150.86,0.0004,2]
[407678626,1772665862087,-150.86,0.0004,2]
[407678627,1772665862098,-150.86,0.0004,2]
[407678628,1772665862110,-150.86,0.0004,2]
[407678629,1772665862120,-150.86,0.0004,2]
[407678630,1772665862130,-150.86,0.0004,2]
[407678631,1772665862140,-150.86,0.0004,2]
[407678632,1772665862151,-150.86,0.0004,2]
[407678633,1772665862160,-1000.0,0.00040053,2]
[407678634,1772665862169,-237.0,0.00040061,14]
[407678635,1772665862179,-150.0,0.00040165,2]
[407678636,1772665862192,-150.0,0.00040387,14]
[407678637,1772665862201,-158.0,0.00040387,14]
[407678638,1772665862211,-17045.59,0.000404,14]
[407678639,1772665862221,-7493.3,0.000404,14]
[407678640,1772665862230,-2194.8,0.000407,14]
[407678641,1772665862239,-2194.79,0.000407,14]
[407678642,1772665862249,-2524.555,0.0004073,59]
[407678643,1772665862259,-150.0,0.00040776,7]
[407678644,1772665862270,-150.0,0.00040776,7]
[407678645,1772665862280,-150.0,0.00040776,7]
[407678646,1772665862290,-2458.0,0.00040855,2]
[407678647,1772665862299,-5987.0,0.00040855,2]
[407678648,1772665862309,-921.0,0.00040855,2]
[407678649,1772665862319,-1966.48071512,0.000409,2]
[407678650,1772665862329,-765.46,0.00040999,120]
[407678651,1772665862339,-150.0,0.00041062,14]
[407678652,1772665862348,-156.0,0.00041062,14]
[407678653,1772665862360,-765.46,0.00041095,120]
[407678654,1772665862370,-765.46,0.00041095,120]
[407678655,1772665862380,-765.46,0.00041095,120]
[407678656,1772665862390,-765.46,0.00041095,120]
[407678657,1772665862399,-765.68975892,0.00041095,120]
[407678658,1772665862409,-376.36377683,0.00041096,7]
[407678659,1772665862418,-800.0,0.00041096,14]
[407678660,1772665862427,-800.0,0.00041096,14]
[407678661,1772665862437,-800.0,0.00041096,14]
[407678662,1772665862446,-800.0,0.00041096,14]
[407678663,1772665862456,-800.0,0.00041096,14]
[407678664,1772665862466,-800.0,0.00041096,14]
[407678665,1772665862475,-800.0,0.00041096,14]
[407678666,1772665862485,-800.0,0.00041096,14]
[407678667,1772665862495,-800.0,0.00041096,14]
[407678668,1772665862506,-151.0,0.00041096,120]
[407678669,1772665862515,-665.693396,0.00041096,15]
[407678670,1772665862525,-151.0,0.00041096,120]
[407678671,1772665862536,-665.693396,0.00041096,15]
[407678672,1772665862546,-151.0,0.00041096,120]
[407678673,1772665862556,-665.693396,0.00041096,15]
[407678674,1772665862566,-151.0,0.00041096,120]
[407678675,1772665862575,-665.693396,0.00041096,15]
[407678676,1772665862585,-183.336352,0.00041096,120]
[407678677,1772665862594,-183.336352,0.00041096,120]
[407678678,1772665862604,-183.336352,0.00041096,120]
[407678679,1772665862614,-183.336352,0.00041096,120]
[407678680,1772665862623,-7493.31,0.000411,14]
[407678681,1772665862633,-152.0,0.00041246,5]
[407678682,1772665862643,-2557.01047445,0.000413,7]
[407678683,1772665862652,-7493.31,0.000413,14]
[407678684,1772665862663,-151.0,0.00041781,120]
[407678685,1772665862673,-237.152,0.00041781,120]
[407678686,1772665862682,-300.0,0.00041913,2]
[407678687,1772665862692,-300.0,0.00041913,2]
[407678688,1772665862701,-300.0,0.00041913,2]
[407678689,1772665862710,-300.0,0.00041913,2]
[407678690,1772665862726,-300.0,0.00041913,2]
[407678691,1772665862735,-300.0,0.00041913,2]
[407678692,1772665862745,-300.0,0.00041913,2]
[407678693,1772665862755,-300.0,0.00041913,2]
[407678694,1772665862765,-300.0,0.00041913,2]
[407678695,1772665862774,-300.0,0.00041913,2]
[407678696,1772665862784,-300.0,0.00041913,2]
[407678697,1772665862793,-300.0,0.00041913,2]
[407678698,1772665862803,-300.0,0.00041913,2]
[407678699,1772665862812,-300.0,0.00041913,2]
[407678700,1772665862823,-300.0,0.00041913,2]
[407678701,1772665862832,-457.53053008,0.00041913,2]
[407678702,1772665862842,-300.0,0.00041913,2]
[407678703,1772665862851,-300.0,0.00041913,2]
[407678704,1772665862860,-300.0,0.00041913,2]
[407678705,1772665862869,-1556.72,0.00041913,2]
[407678706,1772665862879,-300.0,0.00041913,2]
[407678707,1772665862888,-300.0,0.00041913,2]
[407678708,1772665862897,-456.216581,0.00041913,2]
[407678709,1772665862907,-300.0,0.00041913,2]
[407678710,1772665862916,-300.0,0.00041913,2]
[407678711,1772665862926,-300.0,0.00041913,2]
[407678712,1772665862935,-300.0,0.00041913,2]
[407678713,1772665862945,-1048.18492378,0.00041913,2]
[407678714,1772665862954,-409.1648181,0.00041913,2]
[407678715,1772665862963,-300.0,0.00041913,2]
[407678716,1772665862972,-1142.47125995,0.00041913,2]
[407678717,1772665862981,-307.81574507,0.00041913,2]
[407678718,1772665862991,-300.0,0.00041913,2]
[407678719,1772665863000,-613.01657105,0.00041913,2]
[407678720,1772665863009,-496.57111371,0.00041913,2]
[407678721,1772665863019,-519.48893357,0.00041913,2]
[407678722,1772665863029,-409.44971186,0.00041913,2]
[407678723,1772665863039,-300.0,0.00041913,2]
[407678724,1772665863049,-300.0,0.00041913,2]
[407678725,1772665863059,-300.0,0.00041913,2]
[407678726,1772665863069,-300.0,0.00041913,2]
[407678727,1772665863079,-300.0,0.00041913,2]
[407678728,1772665863088,-362.8912665,0.00041913,2]
[407678729,1772665863098,-300.0,0.00041913,2]
[407678730,1772665863108,-300.0,0.00041913,2]
[407678731,1772665863119,-1048.29641437,0.00041913,2]
[407678732,1772665863129,-306.55711131,0.00041913,2]
[407678733,1772665863138,-300.0,0.00041913,2]
[407678734,1772665863148,-855.96946611,0.00041913,2]
[407678735,1772665863160,-300.0,0.00041913,2]
[407678736,1772665863169,-1567.33728619,0.00041913,2]
[407678737,1772665863179,-300.0,0.00041913,2]
[407678738,1772665863190,-300.0,0.00041913,2]
[407678739,1772665863200,-300.0,0.00041913,2]
[407678740,1772665863210,-307.81574507,0.00041913,2]
[407678741,1772665863220,-300.0,0.00041913,2]
[407678742,1772665863229,-300.0,0.00041913,2]
[407678743,1772665863333,-300.0,0.00041913,2]
[407678744,1772665863353,-459.28818076,0.00041913,2]
[407678745,1772665863363,-300.0,0.00041913,2]
[407678746,1772665863372,-300.0,0.00041913,2]
[407678747,1772665863382,-300.0,0.00041913,2]
[407678748,1772665863391,-372.04418134,0.00041913,2]
[407678749,1772665863401,-300.0,0.00041913,2]
[407678750,1772665863410,-300.0,0.00041913,2]
[407678751,1772665863419,-300.0,0.00041913,2]
[407678752,1772665863429,-300.0,0.00041913,2]
[407678753,1772665863438,-519.48893357,0.00041913,2]
[407678754,1772665863447,-409.44971186,0.00041913,2]
[407678755,1772665863456,-300.0,0.00041913,2]
[407678756,1772665863466,-300.0,0.00041913,2]
[407678757,1772665863475,-300.0,0.00041913,2]
[407678758,1772665863484,-300.0,0.00041913,2]
[407678759,1772665863493,-415.54550742,0.00041913,2]
[407678760,1772665863503,-300.0,0.00041913,2]
[407678761,1772665863512,-311.76138571,0.00042,2]
[407678762,1772665863522,-5131.72902938,0.00042,4]
[407678763,1772665863531,-902.31407379,0.00042,2]
[407678764,1772665863540,-500.0,0.00042,2]
[407678765,1772665863549,-159.80437123,0.00042,3]
[407678766,1772665863558,-1371.72204491,0.0004201,2]
[407678767,1772665863568,-17045.59,0.000421,14]
[407678768,1772665863577,-582.0,0.000421,3]
[407678769,1772665863586,-25000.0,0.00042108,15]
[407678770,1772665863596,-18990.89972342,0.00042108,15]
[407678771,1772665863605,-25000.0,0.00042108,15]
[407678772,1772665863615,-5662.69752479,0.000422,2]
[407678773,1772665863625,-107177.4674,0.0004222,7]
[407678774,1772665863634,-980.0,0.000423,30]
[407678775,1772665863644,-439.0,0.000423,30]
[407678776,1772665863653,-402.0,0.000423,30]
[407678777,1772665863662,-3288.64628152,0.00042371,28]
[407678778,1772665863671,-2194.79,0.000424,14]
[407678779,1772665863680,-500.0,0.00042466,120]
[407678780,1772665863690,-500.0,0.00042466,120]
[407678781,1772665863699,-989.0,0.00042466,120]
[407678782,1772665863708,-233.31,0.00042546,120]
[407678783,1772665863717,-2153.5418529,0.00042705,2]
[407678784,1772665863726,-79446.47452776,0.0004272,2]
[407678785,1772665863735,-17045.59,0.000429,14]
[407678786,1772665863744,-1727.54148287,0.00043,2]
[407678787,1772665863754,-386.30088032,0.00043,2]
[407678788,1772665863763,-3132.19179,0.00043,3]
[407678789,1772665863772,-152.0,0.00043049,6]
[407678790,1772665863782,-210.0,0.00043068,120]
[407678791,1772665863791,-210.0,0.00043068,120]
[407678792,1772665863802,-210.0,0.00043068,120]
[407678793,1772665863811,-7493.31,0.000431,14]
[407678794,1772665863821,-823.67114308,0.00043139,2]
[407678795,1772665863831,-169.0,0.00043177,21]
[407678796,1772665863841,-172.00105691,0.000432,10]
[407678797,1772665863850,-17045.59,0.000433,14]
[407678798,1772665863859,-220.0,0.00043529,21]
[407678799,1772665863868,-1050.0,0.00043611,120]
[407678800,1772665863878,-23254.0,0.00043611,120]
[407678801,1772665863888,-150.0,0.00043688,14]
[407678802,1772665863897,-243.0,0.00043688,14]
[407678803,1772665863907,-1000.0,0.00043694,2]
[407678804,1772665863916,-1000.0,0.000438,30]
[407678805,1772665863925,-1000.0,0.000438,30]
[407678806,1772665863935,-204.32433317,0.00043809,120]
[407678807,1772665863944,-800.0,0.00043836,30]
[407678808,1772665863954,-20000.0,0.00043836,120]
[407678809,1772665863963,-2458.0,0.00043855,2]
[407678810,1772665863972,-5987.0,0.00043855,2]
[407678811,1772665863981,-921.0,0.00043855,2]
[407678812,1772665863990,-3548.37293978,0.000439,2]
[407678813,1772665863999,-270.90486772,0.00044,3]
[407678814,1772665864009,-37751.27277049,0.00044,2]
[407678815,1772665864018,-654.1488757,0.00044,2]
[407678816,1772665864028,-81468.64681593,0.000441,2]
[407678817,1772665864037,-2194.79,0.000441,14]
[407678818,1772665864046,-5532.0,0.000441,5]
[407678819,1772665864055,-13397.25855717,0.000442,7]
[407678820,1772665864064,-2302.9811,0.00044227,2]
[407678821,1772665864075,-218.0,0.00044256,21]
[407678822,1772665864084,-118603.97408022,0.00044433,3]
[407678823,1772665864094,-155.1243124,0.00044579,2]
[407678824,1772665864103,-152.0,0.00044852,7]
[407678825,1772665864116,-3288.64628152,0.00044886,28]
[407678826,1772665864125,-2000.0,0.000449,2]
[407678827,1772665864134,-30577.44738534,0.00045,2]
[407678828,1772665864143,-11000.0,0.00045,15]
[407678829,1772665864153,-151.0,0.00045479,120]
[407678830,1772665864162,-162.26,0.0004549,14]
[407678831,1772665864172,-17045.59,0.000455,14]
[407678832,1772665864183,-151.939204,0.00045549,7]
[407678833,1772665864192,-233.8657055,0.00045549,17]
[407678834,1772665864201,-233.86570543,0.00045549,17]
[407678835,1772665864210,-233.86570543,0.00045549,17]
[407678836,1772665864219,-233.86570543,0.00045549,17]
[407678837,1772665864228,-233.86570543,0.00045549,17]
[407678838,1772665864238,-233.86570543,0.00045549,17]
[407678839,1772665864247,-233.86570543,0.00045549,17]
[407678840,1772665864257,-233.86570543,0.00045549,17]
[407678841,1772665864266,-233.86570543,0.00045549,17]
[407678842,1772665864275,-233.86570543,0.00045549,17]
[407678843,1772665864285,-233.86570543,0.00045549,17]
[407678844,1772665864294,-1000.0,0.00045949,30]
[407678845,1772665864304,-989.49869514,0.00046,5]
[407678846,1772665864313,-13010.52003816,0.00046,5]
[407678847,1772665864322,-306.66207254,0.00046,2]
[407678848,1772665864332,-160.08541332,0.00046043,2]
[407678849,1772665864342,-233.86570543,0.00046186,18]
[407678850,1772665864352,-11369.54,0.00046205,8]
[407678851,1772665864362,-1000.0,0.00046223,30]
[407678852,1772665864372,-286.18005047,0.00046449,120]
[407678853,1772665864382,-823.67114308,0.00046449,2]
[407678854,1772665864391,-307.90810153,0.00046496,30]
[407678855,1772665864402,-154.681742,0.00046497,120]
[407678856,1772665864411,-1259.113712,0.00046497,120]
[407678857,1772665864421,-1259.113712,0.00046497,120]
[407678858,1772665864431,-1259.113712,0.00046497,120]
[407678859,1772665864441,-1259.113712,0.00046497,120]
[407678860,1772665864452,-151.0,0.00046497,120]
[407678861,1772665864463,-151.0,0.00046497,120]
[407678862,1772665864473,-151.0,0.00046497,120]
[407678863,1772665864483,-151.0,0.00046497,120]
[407678864,1772665864493,-151.0,0.00046497,120]
[407678865,1772665864502,-151.0,0.00046497,120]
[407678866,1772665864511,-151.0,0.00046497,120]
[407678867,1772665864521,-151.0,0.00046497,120]
[407678868,1772665864531,-509.75229,0.00046497,120]
[407678869,1772665864541,-509.75229,0.00046497,120]
[407678870,1772665864551,-509.75229,0.00046497,120]
[407678871,1772665864561,-509.75229,0.00046497,120]
[407678872,1772665864572,-509.75229,0.00046497,120]
[407678873,1772665864582,-509.75229,0.00046497,120]
[407678874,1772665864592,-509.75229,0.00046497,120]
[407678875,1772665864602,-509.75229,0.00046497,120]
[407678876,1772665864611,-1000.0,0.00046497,30]
[407678877,1772665864620,-151.0,0.00046505,120]
[407678878,1772665864630,-151.0,0.00046505,120]
[407678879,1772665864639,-1123.556729,0.00046505,120]
[407678880,1772665864648,-1123.556729,0.00046505,120]
[407678881,1772665864657,-1123.556729,0.00046505,120]
[407678882,1772665864666,-1123.556729,0.00046505,120]
[407678883,1772665864676,-1123.556729,0.00046505,120]
[407678884,1772665864685,-1123.556729,0.00046505,120]
[407678885,1772665864694,-1123.556729,0.00046505,120]
[407678886,1772665864703,-1123.556729,0.00046505,120]
[407678887,1772665864712,-3643.487575,0.00046505,28]
[407678888,1772665864721,-3643.487575,0.00046505,28]
[407678889,1772665864732,-3643.487575,0.00046505,28]
[407678890,1772665864742,-3643.487575,0.00046505,28]
[407678891,1772665864751,-3643.487575,0.00046505,28]
[407678892,1772665864760,-3643.487575,0.00046505,28]
[407678893,1772665864769,-3643.487575,0.00046505,28]
[407678894,1772665864778,-3643.487575,0.00046505,28]
[407678895,1772665864788,-204.45795491,0.00046539,7]
[407678896,1772665864798,-1246.75,0.00046549,30]
[407678897,1772665864807,-562.8,0.00046549,30]
[407678898,1772665864817,-578.37,0.00046549,30]
[407678899,1772665864826,-562.8,0.00046549,30]
[407678900,1772665864835,-562.8,0.00046549,30]
[407678901,1772665864844,-337.93,0.00046549,30]
[407678902,1772665864854,-562.81,0.00046549,30]
[407678903,1772665864864,-599.55600918,0.00046549,2]
[407678904,1772665864873,-5696.01932057,0.00046549,15]
[407678905,1772665864883,-10000.0,0.00046549,2]
[407678906,1772665864892,-2041.39784577,0.00046549,5]
[407678907,1772665864902,-399.09624426,0.00046549,2]
[407678908,1772665864911,-206213.17329215,0.00046549,2]
[407678909,1772665864921,-124584.75036828,0.00046549,2]
[407678910,1772665864930,-10885.9848988,0.00046549,3]
[407678911,1772665864940,-1210.0,0.00046549,2]
[407678912,1772665864950,-6040.64717188,0.00046549,2]
[407678913,1772665864960,-717.5240423,0.00046549,2]
[407678914,1772665864970,-355.51476453,0.00046549,2]
[407678915,1772665864980,-2859.82484735,0.00046549,2]
[407678916,1772665864989,-986.77068943,0.00046549,2]
[407678917,1772665864998,-1551.78100168,0.00046549,2]
[407678918,1772665865006,-2798.33628052,0.00046549,2]
[407678919,1772665865015,-1050.9256445,0.00046549,2]
[407678920,1772665865024,-5294.79331938,0.00046549,2]
[407678921,1772665865033,-500.84238138,0.00046549,2]
[407678922,1772665865042,-2506.29534604,0.00046549,2]
[407678923,1772665865052,-2008.54759847,0.00046549,2]
[407678924,1772665865061,-2759.77179849,0.00046549,2]
[407678925,1772665865070,-220782.92650527,0.00046549,2]
[407678926,1772665865079,-154.42318568,0.00046549,2]
[407678927,1772665865088,-1711.95916237,0.00046549,2]
[407678928,1772665865097,-254.27057183,0.00046549,2]
[407678929,1772665865107,-500.0,0.00046549,2]
[407678930,1772665865120,-1287.31507584,0.00046549,2]
[407678931,1772665865129,-248.33202655,0.00046549,2]
[407678932,1772665865138,-1063.02476366,0.00046549,2]
[407678933,1772665865148,-556.49798363,0.00046549,2]
[407678934,1772665865157,-9426.58171072,0.00046549,2]
[407678935,1772665865167,-1338.58051336,0.00046549,2]
[407678936,1772665865176,-3490.58373628,0.00046549,2]
[407678937,1772665865187,-2241.71695344,0.00046549,2]
[407678938,1772665865196,-23362.57314303,0.00046549,2]
[407678939,1772665865204,-762.8868983,0.00046549,2]
[407678940,1772665865213,-13096.95299949,0.00046549,2]
[407678941,1772665865222,-187.82299755,0.00046549,2]
[407678942,1772665865231,-155.0,0.00046549,2]
[407678943,1772665865239,-155.0,0.00046549,2]
[407678944,1772665865248,-155.0,0.00046549,2]
[407678945,1772665865257,-155.0,0.00046549,2]
[407678946,1772665865266,-15254.74472038,0.00046549,3]
[407678947,1772665865274,-643.0,0.00046549,2]
[407678948,1772665865283,-990.44982398,0.00046549,2]
[407678949,1772665865292,-584.77246084,0.00046549,2]
[407678950,1772665865301,-811926.08165275,0.00046549,2]
[407678951,1772665865310,-3307.55495216,0.00046549,2]
[407678952,1772665865320,-158.56891293,0.00046549,2]
[407678953,1772665865330,-178.95438978,0.00046549,2]
[407678954,1772665865340,-462.11823239,0.00046549,2]
[407678955,1772665865351,-7422.0229921,0.00046549,2]
[407678956,1772665865360,-550.0,0.00046549,2]
[407678957,1772665865370,-10922.72940007,0.00046549,2]
[407678958,1772665865380,-11081.87548274,0.00046549,2]
[407678959,1772665865389,-2162866.32031337,0.00046549,30]
[407678960,1772665865398,-173589.80196687,0.00046549,2]
[407678961,1772665865407,-15243.98374728,0.00046549,2]
[407678962,1772665865416,-233.49339299,0.00046549,2]
[407678963,1772665865532,-177.2023884,0.00046549,2]
[407678964,1772665865542,-499.02477004,0.00046549,3]
[407678965,1772665865552,-28626.61164082,0.00046549,2]
[407678966,1772665865561,-6000.0,0.00046549,2]
[407678967,1772665865572,-382.79441346,0.00046549,2]
[407678968,1772665865582,-1304.08001943,0.00046549,2]
[407678969,1772665865592,-1053.82328544,0.00046549,2]
[407678970,1772665865602,-151.89374909,0.00046549,2]
[407678971,1772665865612,-50182.99766367,0.00046549,2]
[407678972,1772665865622,-3191.28749062,0.00046549,2]
[407678973,1772665865632,-675.04614786,0.00046549,2]
[407678974,1772665865641,-3515.21101922,0.00046549,2]
[407678975,1772665865651,-7947.86430511,0.00046549,2]
[407678976,1772665865661,-639.13697629,0.00046549,2]
[407678977,1772665865671,-219.11025525,0.00046549,2]
[407678978,1772665865681,-1088.3294088,0.00046549,2]
[407678979,1772665865692,-2500.0,0.00046549,2]
[407678980,1772665865701,-349.0328638,0.00046549,2]
[407678981,1772665865711,-1100.0,0.00046549,2]
[407678982,1772665865721,-3903.1523345,0.00046549,2]
[407678983,1772665865730,-930.65580453,0.00046549,2]
[407678984,1772665865740,-1341.35592799,0.00046549,2]
[407678985,1772665865750,-491.35707437,0.00046549,2]
[407678986,1772665865759,-617.522868,0.00046549,2]
[407678987,1772665865769,-1619.54648011,0.00046549,2]
[407678988,1772665865779,-107222.64528307,0.00046549,2]
[407678989,1772665865789,-559.44528731,0.00046549,2]
[407678990,1772665865798,-1032.32630507,0.00046549,2]
[407678991,1772665865808,-372.22461067,0.00046549,2]
[407678992,1772665865819,-2248.71798331,0.00046549,2]
[407678993,1772665865829,-113903.18195404,0.00046549,2]
[407678994,1772665865839,-500.0,0.00046549,120]
[407678995,1772665865848,-15104.45191197,0.00046549,2]
[407678996,1772665865858,-12490.10578106,0.00046549,2]
[407678997,1772665865867,-2897.84448954,0.00046549,2]
[407678998,1772665865877,-1874.18723043,0.00046549,2]
[407678999,1772665865887,-1141.03826737,0.00046549,2]
[407679000,1772665865896,-278.83823738,0.00046549,2]
[407679001,1772665865906,-410.79950085,0.00046549,2]
[407679002,1772665865916,-150843.77410969,0.00046549,30]
[407679003,1772665865925,-20711.71435245,0.00046549,2]
[407679004,1772665865935,-2489.05840732,0.00046549,2]
[407679005,1772665865944,-10031.92665794,0.00046549,2]
[407679006,1772665865954,-207.0247016,0.00046549,2]
[407679007,1772665865964,-881.11377262,0.00046549,2]
[407679008,1772665865974,-506.74596161,0.00046549,2]
[407679009,1772665865983,-288.62007458,0.00046549,2]
[407679010,1772665865993,-5806.8273141,0.00046549,2]
[407679011,1772665866002,-2217.49801229,0.00046549,2]
[407679012,1772665866012,-894.18144334,0.00046549,2]
[407679013,1772665866022,-470.07860395,0.00046549,2]
[407679014,1772665866031,-150.0,0.00046549,2]
[407679015,1772665866041,-12900.46057391,0.00046549,2]
[407679016,1772665866051,-203.59956232,0.00046549,2]
[407679017,1772665866060,-758.01193365,0.00046549,2]
[407679018,1772665866071,-1373.28321255,0.00046549,2]
[407679019,1772665866080,-200.67144104,0.00046549,2]
[407679020,1772665866090,-1524.50134384,0.00046549,2]
[407679021,1772665866101,-19825.79469163,0.00046549,2]
[407679022,1772665866116,-466.36205348,0.00046549,2]
[407679023,1772665866126,-406.85532142,0.00046549,2]
[407679024,1772665866136,-150.0,0.00046549,120]
[407679025,1772665866147,-176.7327853,0.00046549,120]